Workbook

Sheet Általános szörnyinfók
A1: KF-es szörnyfelhozatal
A4: füstherceg (#7261)
A5: A legkönnyebb ellenfél. Dupla kiszáradással indít, a távfegyver körben lőtt hősugarával vízkészletünket tünteti el, amit akár egy kezdeti/befejező parancsba rakott esőidézéssel simán megoldunk (a lényeg, hogy főzéshez legyen vizünk). Különös készülődést nem igényel.
B8: halál alapú varázslat nem hat rá.
B9: ryuku átokvarázs varázslat nem hat rá.
A11: csapat dűneelf zombi (#7314)
A12: Csapatlény, puha ütni lehet érdemes, amúgy semmit nem tud felmutatni, csak üt, könnyű ellenfél, az egyetlen KF-es élőholt, amiből vámpirizálni lehet, sokáig gyógyulhatunk belőle.
B15: halál alapú varázslat nem hat rá.
B16: istenítélet varázslat nem hat rá.
B17: káosz szava varázslat nem hat rá.
B18: mentális varázslat nem hat rá.
B19: mérgező varázslat nem hat rá.
B20: pusztító végzet varázslat nem hat rá.
B21: ryuku átokvarázs varázslat nem hat rá.
B22: sötét halál varázslat nem hat rá.
A24: moa szellem (#7356)
A25: Szintén semmi speciális, viszont távfegyverkörben tárgyat pusztít. Kevés éjkővel akár hálózhatjuk is, de több éjkővel esszenciális lesz a dezintegrálás, felezi a sebzését, ami nem vészes, de mivel nem tudunk belőle vámpirizálni, így meg fogjuk érezni.
B28: halál alapú varázslat nem hat rá.
B29: mérgező varázslat nem hat rá.
A31: alasthai kísértet (#7394)
A32: Erős félelem-aurája van, kezdő KF-esek néhány éjkő mellett már érézeklhetik hatását. Sajnos az agybén II-re is és a hálóra immúnis, így ha kicsi a szerencsénk, tőle futni fogunk. Esetleg krough fejdísze segíthet, de állandóan ebben mászkálni meg azt jelenti, hogy le kell mondani a ryuku kalózkalap / moa rohamsisak által adott bónuszokról. Jól eszi az istenítéletet, csak legyen minél magasabb a mágiaerőnk.
B36: fizikai sebezhetőség: 50%.
B37: hideg alapú varázslat nem hat rá.
B38: istenítélet varázslatra érzékeny.
B39: mérgező varázslat nem hat rá.
A41: lhinami fagyszellem (#7395)
A42: Az 50%-os fizikai sebezhetősége problémát jelenthet. Fehér glóbusz húzzunk ellene, az már megfogja a sebzése nagy részét, a rezisztancia pedig a vakító fény II-sorozat miatt kell, ha nem fogjuk meg, akár -99 támadást is kaphatunk, bár nincs nagy védelme, így a fiz.pajzs 2 is játszhat. Jól eszi az istenítéletet, csak legyen minél magasabb a mágiaerőnk.
B46: fizikai sebezhetőség: 50%.
B47: fizikai varázslat nem hat rá.
B48: hideg alapú varázslat nem hat rá.
B49: istenítélet varázslatra érzékeny.
B50: mentális varázslat nem hat rá.
A52: Handastye csontúr (#7398)
A53: Kemény ellenfél, mindenképp kell ellene az admantit bőr a csontfaló képessége miatt. Sebzése nem vészes, de vámpirizációra immúnis, ezért nem gyógyulunk belőle. Elvileg ő is érzékeny az istenítéletre, de ő már erősen pörget mentődobást. Ameddig megeszi, addig használjuk ellene bátran, mert 50% fizikai sebezhetőséggel rendelkezik. Mivel Ő a legmagasabb szintű, így akár esszenciakristállyal is megkínálhatjuk, ha futja rá.
B57: fizikai sebezhetőség: 50%.
B58: fizikai varázslat nem hat rá.
B59: hideg alapú varázslat nem hat rá.
B60: istenítélet varázslatra érzékeny.
B61: mentális varázslat nem hat rá.
B62: mérgező varázslat nem hat rá.
A64: szellemszolga (#7404)
A65: Közepesen kemény ellenfél. 75% fizikai sebezhetőség miatt nehezebben ölhető, valami fixen sebző varázslat (pl. Daxx csapás) javasolt, ha már fizikai varázslatokra amúgy is immúnis. Vámpirizálni belőle sem lehet, körönként 1200-1500-at sebez, ezen felül, ha hanyagoltuk a zenénk fejlesztését, azt rosszul tettük, mert rikácsol is.
B69: fizikai sebezhetőség: 75%.
B70: fizikai varázslat nem hat rá.
B71: halál alapú varázslat nem hat rá.
B72: mérgező varázslat nem hat rá.
B73: istenítélet varázslat nem hat rá.
A75: vámpír ősatya (#7415)
A76: Kemény ellenfél, szívja az erőnket, sokat sebez és immunis ő is a vámpirizációra. E mellett még sok ÉP-je is van és a varázslatok alig sebzik. De legalább a dezintegráció működik rá. Legyen nálunk fokhagyma.
B79: halál alapú varázslat nem hat rá.
B80: mágikus sebezhetőség: 10%.
A82: vámpír adeptus (#7421)
A83: Szintén immúnis a vámpirizációra, ő is le tud fejezni, kell az adamantit bőr. Sok ÉP, de legalább a varázslatok rendesen sebzik. Fokhagyma ellene is kell.
B86: halál alapú varázslat nem hat rá.
B87: mentális varázslat nem hat rá.
B88: mérgező varázslat nem hat rá.
A90: ködszellem (#7476)
A91: A legkeményebb ellenfél, fizikailag alig sebezhető. Egy jó enerigiavarázslat tud nagyon sokat segíteni. Az istenítéletet nagyon jól megeszi (le lehet vele lőni), ha nincs, vagy már megdobja a mentőt, akkor Daxx csapás marad, ami nem olyan hatékony, mert nem hal bele - cserébe rengeteget darál (a legtöbbet a KF-es felhozatalból), a legtöbb ÉP-je neki van és belőle sem lehet vámpirizálni.
B95: energia alapú varázslatokra érzékeny.
B96: fizikai sebezhetőség: 25%.
B97: holtak szava varázslat nem hat rá.
B98: mágikus sebezhetőség: 150%.
A100: Loachlan (#7423)
A101: Magas védelem, mellé bénítás szavát és dezintegrálást lő (ha makróból idézzük, mindenképp állítsunk ellene immunkristályt), Ezen felül darál rendesen, erőt szív, és mágikusan alig sebezhető. Fokhagyma elvileg nem kell hozzá, de ki tudja… a többi vámpír miatt úgyis lesz nálunk.
B105: mágiaérzékenység: 10 %.
B106: energia alapú varázslatokra érzékeny.
B107: halál alapú varázslat nem hat rá.

Sheet KF
B1: füstherceg (#7261) | F1: csapat dűneelf zombi (#7314) | J1: moa szellem (#7356) | N1: alasthai kísértet (#7394) | R1: lhinami fagyszellem (#7395) | V1: Handastye csontúr (#7398) | Z1: szellemszolga (#7404) | AD1: vámpírsárkány (#7414) | AH1: vámpír ősatya (#7415) | AL1: vámpír adeptus (#7421) | AP1: ködszellem (#7476) | AT1: Loachlan (#7423)
A2: éjkő | B2: szint | C2: AC | D2: HP min | E2: HP max | F2: szint | G2: AC | H2: HP min | I2: HP max | J2: szint | K2: AC | L2: HP min | M2: HP max | N2: szint | O2: AC | P2: HP min | Q2: HP max | R2: szint | S2: AC | T2: HP min | U2: HP max | V2: szint | W2: AC | X2: HP min | Y2: HP max | Z2: szint | AA2: AC | AB2: HP min | AC2: HP max | AD2: szint | AE2: AC | AF2: HP min | AG2: HP max | AH2: szint | AI2: AC | AJ2: HP min | AK2: HP max | AL2: szint | AM2: AC | AN2: HP min | AO2: HP max | AP2: szint | AQ2: AC | AR2: HP min | AS2: HP max | AT2: szint | AU2: AC | AV2: HP min | AW2: HP max
A3: 0 | B3: 71 | C3: 210 | D3: 6951 | E3: 7850 | F3: 75 | G3: 180-180-225 | H3: 12800 | I3: 15999 | J3: 81 | K3: 100 | L3: 7001 | M3: 7888 | N3: 85 | O3: 150 | P3: 8001 | Q3: 9000 | R3: 82 | S3: 200 | T3: 7001 | U3: 8000 | V3: 89 | W3: 280 | X3: 9001 | Y3: 10000 | Z3: 85 | AA3: 245 | AB3: 9001 | AC3: 12000 | AD3: 83 | AE3: 220 | AF3: 7001 | AG3: 8000 | AH3: 87 | AI3: 280 | AJ3: 12001 | AK3: 13800 | AL3: 80 | AM3: 220-320-320 | AN3: 10001 | AO3: 12000 | AP3: 73 | AQ3: 200 | AR3: 15001 | AS3: 17000 | AU3: 330 | AV3: 19000 | AW3: 19000
A4: 1 | B4: 74 | C4: 221 | D4: =D3+392+(1/3) -> 7343.333333 | E4: =E3+392+(1/3) -> 8242.333333 | F4: 78 | G4: 194-194-243 | H4: 13599 | I4: 16798 | J4: 85 | K4: 105 | L4: 7395 | M4: 8395 | N4: 89 | O4: 158 | P4: =P3+450 -> 8451 | Q4: =Q3+450 -> 9450 | R4: 86 | S4: 211 | T4: =T3+400 -> 7401 | U4: =U3+400 -> 8400 | V4: 93 | W4: 294 | X4: =X3+500 -> 9501 | Y4: =Y3+500 -> 10500 | Z4: 89 | AA4: 269 | AB4: =AB3+600 -> 9601 | AC4: =AC3+600 -> 12600 | AD4: 87 | AE4: 232 | AF4: =AF3+400 -> 7401 | AG4: =AG3+400 -> 8400 | AH4: 91 | AI4: 296 | AJ4: =AJ3+690 -> 12691 | AK4: =AK3+690 -> 14490 | AL4: 83 | AM4: 235-343-343 | AN4: =AN3+600 -> 10601 | AO4: =AO3+600 -> 12600 | AP4: 76 | AQ4: 211 | AR4: =AR3+850 -> 15851 | AS4: =AS3+850 -> 17850
A5: 2 | B5: 78 | C5: 225 | D5: =D4+392+(1/3) -> 7735.666667 | E5: =E4+392+(1/3) -> 8634.666667 | F5: =F4+3.75 -> 81.75 | G5: 197-197-246 | H5: =H4+799.95 -> 14398.95 | I5: =I4+799.95 -> 17597.95 | J5: 89 | K5: 107 | L5: 7789 | M5: 8676 | N5: 93 | O5: 160 | P5: =P4+450 -> 8901 | Q5: =Q4+450 -> 9900 | R5: 90 | S5: 215 | T5: =T4+400 -> 7801 | U5: =U4+400 -> 8800 | V5: =V4+4.48 -> 97.48 | W5: 299 | X5: =X4+500 -> 10001 | Y5: =Y4+500 -> 11000 | Z5: 93 | AA5: =AA4+4 -> 273 | AB5: =AB4+600 -> 10201 | AC5: =AC4+600 -> 13200 | AD5: 91 | AE5: =AE4+3.675 -> 235.675 | AF5: =AF4+400 -> 7801 | AG5: =AG4+400 -> 8800 | AH5: 95 | AI5: 301 | AJ5: =AJ4+690 -> 13381 | AK5: =AK4+690 -> 15180 | AL5: 88 | AM5: 239-348-348 | AN5: =AN4+600 -> 11201 | AO5: =AO4+600 -> 13200 | AP5: 80 | AQ5: 214 | AR5: =AR4+850 -> 16701 | AS5: =AS4+850 -> 18700 | AV5: 20900 | AW5: 20900
A6: 3 | B6: 81 | C6: 228 | D6: 8128 | E6: 9027 | F6: =F5+3.75 -> 85.5 | G6: 200-200-250 | H6: =H5+799.95 -> 15198.9 | I6: =I5+799.95 -> 18397.9 | J6: =J5+4 -> 93 | K6: 108 | L6: =L5+394.416 -> 8183.416 | M6: =M5+394.416 -> 9070.416 | N6: 97 | O6: 163 | P6: 9351 | Q6: 10350 | R6: 94 | S6: 218 | T6: 8201 | U6: 9200 | W6: 304 | X6: 10501 | Y6: 11500 | Z6: 97 | AA6: =AA5+4 -> 277 | AB6: 10801 | AC6: 13800 | AD6: 95 | AE6: =AE5+3.675 -> 239.35 | AF6: 8201 | AG6: 9200 | AH6: 100 | AI6: 306 | AJ6: 14071 | AK6: 15870 | AL6: 92 | AM6: 243-353-353 | AN6: 11801 | AO6: 13800 | AP6: 84 | AQ6: 217 | AR6: 17551 | AS6: 19550
A7: 4 | B7: 85 | C7: 232 | D7: 8520.333333 | E7: 9419.333333 | F7: 89.25 | G7: 203-203-254 | H7: 15998.85 | I7: 19197.85 | J7: =J6+4 -> 97 | K7: 110 | L7: =L6+394.416 -> 8577.832 | M7: =M6+394.416 -> 9464.832 | N7: 102 | O7: 165 | P7: 9801 | Q7: 10800 | R7: 98 | S7: 221 | T7: 8601 | U7: 9600 | V7: 106 | W7: 308 | X7: 11001 | Y7: 12000 | Z7: 102 | AA7: 281 | AB7: 11401 | AC7: 14400 | AD7: 99 | AE7: =AE6+3.675 -> 243.025 | AF7: 8601 | AG7: 9600 | AH7: 104 | AI7: 310 | AJ7: 14761 | AK7: 16560 | AL7: 96 | AM7: 246-359-359 | AN7: 12401 | AO7: 14400 | AP7: 87 | AQ7: 221 | AR7: 18401 | AS7: 20400
A8: 5 | B8: 88 | C8: 235 | D8: 8912.666667 | E8: 9811.666667 | F8: 93 | G8: 206-206-258 | H8: 16798.8 | I8: 19997.8 | J8: 101 | K8: 112 | L8: 8972.248 | M8: 9859.248 | N8: 106 | O8: 168 | P8: 10251 | Q8: 11250 | R8: 102 | S8: 225 | T8: 9001 | U8: 10000 | V8: 110 | W8: 313 | X8: 11501 | Y8: 12500 | Z8: 106 | AA8: 285 | AB8: 12001 | AC8: 15000 | AD8: 103 | AE8: 246.7 | AF8: 9001 | AG8: 10000 | AH8: 108 | AI8: 315 | AJ8: 15451 | AK8: 17250 | AL8: 100 | AM8: 250-364-364 | AN8: 13001 | AO8: 15000 | AP8: 91 | AQ8: 224 | AR8: 19251 | AS8: 21250
A9: 6 | B9: 92 | C9: 239 | D9: 9305 | E9: 10204 | F9: 96.75 | G9: 209-209-262 | H9: 17598.75 | I9: 20797.75 | J9: 105 | K9: 113 | L9: 9366.664 | M9: 10253.664 | N9: 110 | O9: 170 | P9: =P8+450 -> 10701 | Q9: =Q8+450 -> 11700 | R9: 106 | S9: 228 | T9: 9401 | U9: 10400 | V9: 114 | W9: 318 | X9: 12001 | Y9: 13000 | Z9: 110 | AA9: 289 | AB9: 12601 | AC9: 15600 | AD9: 107 | AE9: 250.375 | AF9: 9401 | AG9: 10400 | AH9: 113 | AI9: 320 | AJ9: 16141 | AK9: 17940 | AL9: 103 | AM9: 254-369-369 | AN9: 13601 | AO9: 15600 | AP9: 95 | AQ9: 227 | AR9: 20101 | AS9: 22100
A10: 7 | B10: 95 | C10: 242 | D10: 9697.333333 | E10: 10596.33333 | F10: 100.5 | G10: 212-212-266 | H10: 18398.7 | I10: 21597.7 | J10: 109 | K10: 115 | L10: 9761.08 | M10: 10648.08 | N10: 115 | O10: 173 | P10: =P9+450 -> 11151 | Q10: =Q9+450 -> 12150 | R10: 110 | S10: 231 | T10: 9801 | U10: 10800 | V10: 118 | W10: 322 | X10: 12501 | Y10: 13500 | Z10: 115 | AA10: 293 | AB10: 13201 | AC10: 16200 | AD10: 112 | AE10: 254.05 | AF10: 9801 | AG10: 10800 | AH10: 117 | AI10: 325 | AJ10: 16831 | AK10: 18630 | AL10: 108 | AM10: 257-375-375 | AN10: 14201 | AO10: 16200 | AP10: 98 | AQ10: 231 | AR10: 20951 | AS10: 22950
A11: 8 | B11: 99 | C11: 246 | D11: 10089.66667 | E11: 10988.66667 | F11: 104.25 | G11: 215-215-269 | H11: 19198.65 | I11: 22397.65 | J11: 113 | K11: 117 | L11: 10155.496 | M11: 11042.496 | N11: 119 | O11: 175 | P11: 11601 | Q11: 12600 | R11: 114 | S11: 235 | T11: 10201 | U11: 11200 | V11: 124 | W11: 327 | X11: 13001 | Y11: 14000 | Z11: 119 | AA11: 297 | AB11: 13801 | AC11: 16800 | AD11: 116 | AE11: 257.725 | AF11: 10201 | AG11: 11200 | AH11: 121 | AI11: 329 | AJ11: 17521 | AK11: 19320 | AL11: 112 | AM11: 261-380-380 | AN11: 14801 | AO11: 16800 | AP11: 102 | AQ11: 234 | AR11: 21801 | AS11: 23800
A12: 9 | B12: 102 | C12: 249 | D12: 10482 | E12: 11381 | F12: 108 | G12: 218-218-273 | H12: 19998.6 | I12: 23197.6 | J12: 117 | K12: 118 | L12: 10549.912 | M12: 11436.912 | N12: 123 | O12: 178 | P12: 12051 | Q12: 13050 | R12: 118 | S12: 238 | T12: 10601 | U12: 11600 | W12: 332 | X12: 13501 | Y12: 14500 | Z12: 123 | AA12: 301 | AB12: 14401 | AC12: 17400 | AD12: 120 | AE12: 261.4 | AF12: 10601 | AG12: 11600 | AH12: 126 | AI12: 334 | AJ12: =AJ11+690 -> 18211 | AK12: =AK11+690 -> 20010 | AL12: 116 | AM12: 265-385-385 | AN12: 15401 | AO12: 17400 | AP12: 106 | AQ12: 237 | AR12: 22651 | AS12: 24650
A13: 10 | B13: 106 | C13: 253 | D13: 10874.33333 | E13: 11773.33333 | F13: 111.75 | G13: 221-221-277 | H13: 20798.55 | I13: 23997.55 | J13: 121 | K13: 120 | L13: 10944.328 | M13: 11831.328 | N13: 127 | O13: 180 | P13: 12501 | Q13: 13500 | R13: 123 | S13: 241 | T13: 11001 | U13: 12000 | W13: 336 | X13: 14001 | Y13: 15000 | Z13: 127 | AA13: 306 | AB13: 15001 | AC13: 18000 | AD13: 124 | AE13: 265.075 | AF13: 11001 | AG13: 12000 | AH13: 130 | AI13: 339 | AJ13: =AJ12+690 -> 18901 | AK13: =AK12+690 -> 20700 | AL13: 120 | AM13: 268-391-391 | AN13: 16001 | AO13: 18000 | AP13: 109 | AQ13: 241 | AR13: 23501 | AS13: 25500 | AT13: 142 | AU13: 385 | AV13: 28500 | AW13: 28500
A14: 11 | B14: 109 | C14: 256 | D14: 11266.66667 | E14: 12165.66667 | F14: 115.5 | G14: 224-224-281 | H14: 21598.5 | I14: 24797.5 | J14: 125 | K14: 122 | L14: 11338.744 | M14: 12225.744 | N14: 131 | O14: 183 | P14: 12951 | Q14: 13950 | R14: 127 | S14: 245 | T14: 11401 | U14: 12400 | W14: 340 | X14: 14501 | Y14: 15500 | Z14: 131 | AA14: =AA13+4 -> 310 | AB14: 15601 | AC14: 18600 | AD14: 128 | AE14: 268.75 | AF14: 11401 | AG14: 12400 | AH14: 134 | AI14: 343 | AJ14: 19591 | AK14: 21390 | AL14: 123 | AM14: 272-396-396 | AN14: 16601 | AO14: 18600 | AP14: 113 | AQ14: 244 | AR14: 24351 | AS14: 26350
A15: 12 | B15: 113 | C15: 260 | D15: 11659 | E15: 12558 | F15: 119.25 | G15: 227-227-285 | H15: 22398.45 | I15: 25597.45 | J15: 129 | K15: 123 | L15: 11733.16 | M15: 12620.16 | N15: 136 | O15: 185 | P15: 13401 | Q15: 14400 | R15: 131 | S15: 248 | T15: 11801 | U15: 12800 | W15: 345 | X15: 15001 | Y15: 16000 | Z15: 136 | AA15: =AA14+4 -> 314 | AB15: 16201 | AC15: 19200 | AD15: 132 | AE15: 272.425 | AF15: 11801 | AG15: 12800 | AH15: 139 | AI15: 348 | AJ15: 20281 | AK15: 22080 | AL15: 128 | AM15: 276-401-401 | AN15: 17201 | AO15: 19200 | AP15: 117 | AQ15: 247 | AR15: 25201 | AS15: 27200
A16: 13 | B16: 116 | C16: 263 | D16: 12051.33333 | E16: 12950.33333 | F16: 123 | G16: 230-230-288 | H16: 23198.4 | I16: 26397.4 | J16: 133 | K16: 125 | L16: 12127.576 | M16: 13014.576 | N16: 140 | O16: 188 | P16: 13851 | Q16: 14850 | R16: 135 | S16: 251 | T16: 12201 | U16: 13200 | V16: 146 | W16: 350 | X16: 15501 | Y16: 16500 | Z16: 140 | AA16: 318 | AB16: 16801 | AC16: 19800 | AD16: 137 | AE16: 276.1 | AF16: 12201 | AG16: 13200 | AH16: 143 | AI16: 353 | AJ16: 20971 | AK16: 22770 | AL16: 132 | AM16: 279-407-407 | AN16: 17801 | AO16: 19800 | AP16: 120 | AQ16: 251 | AR16: 26051 | AS16: 28050
A17: 14 | B17: 120 | C17: 267 | D17: 12443.66667 | E17: 13342.66667 | F17: 126.75 | G17: 233-233-292 | H17: 23998.35 | I17: 27197.35 | J17: 137 | K17: 127 | L17: 12521.992 | M17: 13408.992 | N17: 144 | O17: 190 | P17: =P16+450 -> 14301 | Q17: =Q16+450 -> 15300 | R17: 139 | S17: 255 | T17: 12601 | U17: 13600 | W17: 354 | X17: 16001 | Y17: 17000 | Z17: 144 | AA17: 322 | AB17: 17401 | AC17: 20400 | AD17: 141 | AE17: 279.775 | AF17: 12601 | AG17: 13600 | AH17: 147 | AI17: 357 | AJ17: 21661 | AK17: 23460 | AL17: 136 | AM17: 283-412-412 | AN17: 18401 | AO17: 20400 | AP17: 124 | AQ17: 254 | AR17: 26901 | AS17: 28900
A18: 15 | B18: 124 | C18: 270 | D18: 12836 | E18: 13735 | F18: 130.5 | G18: 236-236-296 | H18: 24798.3 | I18: 27997.3 | J18: 141 | K18: 128 | L18: 12916.408 | M18: 13803.408 | N18: 149 | O18: 193 | P18: 14751 | Q18: 15750 | R18: 143 | S18: 258 | T18: 13001 | U18: 14000 | W18: 359 | X18: 16501 | Y18: 17500 | Z18: 149 | AA18: 326 | AB18: 18001 | AC18: 21000 | AD18: 145 | AE18: 283.45 | AF18: 13001 | AG18: 14000 | AH18: 152 | AI18: 362 | AJ18: 22351 | AK18: 24150 | AL18: 140 | AM18: 287-417-417 | AN18: 19001 | AO18: 21000 | AP18: 128 | AQ18: 257 | AR18: 27751 | AS18: 29750
A19: 16 | B19: 127 | C19: 274 | D19: 13228.33333 | E19: 14127.33333 | F19: 134.25 | G19: 239-239-300 | H19: 25598.25 | I19: 28797.25 | J19: 145 | K19: 130 | L19: 13310.824 | M19: 14197.824 | N19: 152 | O19: 195 | P19: =P18+450 -> 15201 | Q19: =Q18+450 -> 16200 | R19: 147 | S19: 261 | T19: 13401 | U19: 14400 | V19: 160 | W19: 364 | X19: 17001 | Y19: 18000 | Z19: 152 | AA19: 330 | AB19: 18601 | AC19: 21600 | AD19: 149 | AE19: 287.125 | AF19: 13401 | AG19: 14400 | AH19: 156 | AI19: 367 | AJ19: 23041 | AK19: 24840 | AL19: 143 | AM19: 290-423-423 | AN19: 19601 | AO19: 21600 | AP19: 131 | AQ19: 261 | AR19: 28601 | AS19: 30600
A20: 17 | B20: 131 | C20: 277 | D20: 13620.66667 | E20: 14519.66667 | F20: 138 | G20: 242-242-303 | H20: 26398.2 | I20: 29597.2 | J20: 149 | K20: 132 | L20: 13705.24 | M20: 14592.24 | N20: 157 | O20: 198 | P20: =P19+450 -> 15651 | Q20: =Q19+450 -> 16650 | R20: 151 | S20: 265 | T20: 13801 | U20: 14800 | W20: 368 | X20: 17501 | Y20: 18500 | Z20: 157 | AA20: 334 | AB20: 19201 | AC20: 22200 | AD20: 153 | AE20: 290.8 | AF20: 13801 | AG20: 14800 | AH20: 160 | AI20: 371 | AJ20: 23731 | AK20: 25530 | AL20: 148 | AM20: 294-428-428 | AN20: 20201 | AO20: 22200 | AP20: 135 | AQ20: 264 | AR20: 29451 | AS20: 31450
A21: 18 | B21: 134 | C21: 281 | D21: 14013 | E21: 14912 | F21: 141.75 | G21: 245-245-307 | H21: 27198.15 | I21: 30397.15 | J21: 153 | K21: 133 | L21: 14099.656 | M21: 14986.656 | N21: 161 | O21: 200 | P21: 16101 | Q21: 17100 | R21: 155 | S21: 268 | T21: 14201 | U21: 15200 | V21: 169 | W21: 373 | X21: 18001 | Y21: 19000 | Z21: 161 | AA21: 338 | AB21: 19801 | AC21: 22800 | AD21: 157 | AE21: 294.475 | AF21: 14201 | AG21: 15200 | AH21: 165 | AI21: 376 | AJ21: 24421 | AK21: 26220 | AL21: 152 | AM21: 298-433-433 | AN21: 20801 | AO21: 22800 | AP21: 139 | AQ21: 267 | AR21: 30301 | AS21: 32300
A22: 19 | B22: 138 | C22: 284 | D22: 14405.33333 | E22: 15304.33333 | F22: 145.5 | G22: 248-248-311 | H22: 27998.1 | I22: 31197.1 | J22: 157 | K22: 135 | L22: 14494.072 | M22: 15381.072 | N22: 165 | O22: 203 | P22: 16551 | Q22: 17550 | R22: 159 | S22: 271 | T22: 14601 | U22: 15600 | W22: 378 | X22: 18501 | Y22: 19500 | Z22: 165 | AA22: 342 | AB22: 20401 | AC22: 23400 | AD22: 162 | AE22: 298.15 | AF22: 14601 | AG22: 15600 | AH22: 169 | AI22: 381 | AJ22: 25111 | AK22: 26910 | AL22: 156 | AM22: 301-439-439 | AN22: 21401 | AO22: 23400 | AP22: 142 | AQ22: 271 | AR22: 31151 | AS22: 33150
A23: 20 | B23: 142 | C23: 288 | D23: 14801 | E23: 15700 | F23: 150 | G23: 252-252-315 | H23: 28798.05 | I23: 31997.05 | J23: 162 | K23: 137 | L23: 14888.488 | M23: 15775.488 | N23: 170 | O23: 205 | P23: 17001 | Q23: 18000 | R23: 164 | S23: 275 | T23: 15001 | U23: 16000 | V23: 178 | W23: 382 | X23: 19001 | Y23: 20000 | Z23: 170 | AA23: 347 | AB23: 21001 | AC23: 24000 | AD23: 166 | AE23: 301.825 | AF23: 15001 | AG23: 16000 | AH23: 174 | AI23: 385 | AJ23: 25801 | AK23: 27600 | AL23: 160 | AM23: 305-444-444 | AN23: 22001 | AO23: 24000 | AP23: 146 | AQ23: 274 | AR23: 32001 | AS23: 34000
A24: 21 | B24: 145 | C24: 291 | D24: 15193.33333 | E24: 16092.33333 | F24: 153.75 | G24: 255-255-319 | H24: 29598 | I24: 32797 | J24: 166 | K24: 138 | L24: 15282.904 | M24: 16169.904 | N24: 174 | O24: 208 | P24: =P23+450 -> 17451 | Q24: =Q23+450 -> 18450 | R24: 168 | S24: 278 | T24: 15401 | U24: 16400 | V24: 182 | W24: 387 | X24: 19501 | Y24: 20500 | Z24: 174 | AA24: 351 | AB24: 21601 | AC24: 24600 | AD24: 170 | AE24: 305.5 | AF24: 15401 | AG24: 16400 | AH24: 179 | AI24: 390 | AJ24: 26491 | AK24: 28290 | AL24: 163 | AM24: 309-449-449 | AN24: 22601 | AO24: 24600 | AP24: 150 | AQ24: 277 | AR24: 32851 | AS24: 34850
A25: 22 | B25: 149 | C25: 295 | D25: 15585.66667 | E25: 16484.66667 | F25: 157 | G25: 257-257-322 | H25: 30397.95 | I25: 33596.95 | J25: 170 | K25: 140 | L25: 15677.32 | M25: 16564.32 | N25: 178 | O25: 210 | P25: =P24+450 -> 17901 | Q25: =Q24+450 -> 18900 | R25: 172 | S25: 281 | T25: 15801 | U25: 16800 | V25: 186 | W25: 392 | X25: 20001 | Y25: 21000 | Z25: 178 | AA25: 355 | AB25: 22201 | AC25: 25200 | AD25: 174 | AE25: 309.175 | AF25: 15801 | AG25: 16800 | AH25: 183 | AI25: 394 | AJ25: 27181 | AK25: 28980 | AL25: 168 | AM25: 312-455-455 | AN25: 23201 | AO25: 25200 | AP25: 153 | AQ25: 281 | AR25: 33701 | AS25: 35700
A26: 23 | B26: 152 | C26: 298 | D26: 15978 | E26: 16877 | F26: 160.75 | G26: 260-260-326 | H26: 31197.9 | I26: 34396.9 | J26: 174 | K26: 142 | L26: 16071.736 | M26: 16958.736 | N26: 183 | O26: 213 | P26: 18351 | Q26: 19350 | R26: 176 | S26: 285 | T26: 16201 | U26: 17200 | V26: 190 | W26: 396 | X26: 20501 | Y26: 21500 | Z26: 183 | AA26: 359 | AB26: 22801 | AC26: 25800 | AD26: 178 | AE26: 312.85 | AF26: 16201 | AG26: 17200 | AH26: 187 | AI26: 399 | AJ26: 27871 | AK26: 29670 | AL26: 172 | AM26: 316-460-460 | AN26: 23801 | AO26: 25800 | AP26: 157 | AQ26: 284 | AR26: 34551 | AS26: 36550
A27: 24 | B27: 156 | C27: 302 | D27: 16370.33333 | E27: 17269.33333 | F27: 164.5 | G27: 263-263-329 | H27: 31997.85 | I27: 35196.85 | J27: 178 | K27: 143 | L27: 16466.152 | M27: 17353.152 | N27: 187 | O27: 215 | P27: 18801 | Q27: 19800 | R27: 180 | S27: 288 | T27: 16601 | U27: 17600 | V27: 195 | W27: 401 | X27: 21001 | Y27: 22000 | Z27: 187 | AA27: 363 | AB27: 23401 | AC27: 26400 | AD27: 182 | AE27: 316.525 | AF27: 16601 | AG27: 17600 | AH27: 192 | AI27: 404 | AJ27: 28561 | AK27: 30360 | AL27: 176 | AM27: 320-465-465 | AN27: 24401 | AO27: 26400 | AP27: 161 | AQ27: 287 | AR27: 35401 | AS27: 37400
A28: 25 | B28: 159 | C28: 305 | D28: 16762.66667 | E28: 17661.66667 | F28: 168.25 | G28: 266-266-333 | H28: 32797.8 | I28: 35996.8 | J28: =J27+4 -> 182 | K28: 145 | L28: =L27+394.416 -> 16860.568 | M28: =M27+394.416 -> 17747.568 | N28: 191 | O28: 218 | P28: 19251 | Q28: 20250 | R28: 184 | S28: 291 | T28: 17001 | U28: 18000 | W28: 406 | X28: 21501 | Y28: 22500 | Z28: 191 | AA28: 367 | AB28: 24001 | AC28: 27000 | AD28: 187 | AE28: 320.2 | AF28: =AF27+400 -> 17001 | AG28: =AG27+400 -> 18000 | AH28: 196 | AI28: 408 | AJ28: =AJ27+690 -> 29251 | AK28: =AK27+690 -> 31050 | AL28: 180 | AM28: 323-471-471 | AN28: 25001 | AO28: 27000 | AP28: 164 | AQ28: 291 | AR28: 36251 | AS28: 38250
A29: 26 | B29: 162 | C29: 309 | D29: 17155 | E29: 18054 | F29: 172 | G29: 269-269-336 | H29: 33597.75 | I29: 36796.75 | J29: =J28+4 -> 186 | K29: 147 | L29: 17254.984 | M29: 18141.984 | N29: 195 | O29: 220 | P29: 19701 | Q29: 20700 | R29: 188 | S29: 295 | T29: 17401 | U29: 18400 | W29: 410 | X29: 22001 | Y29: 23000 | Z29: 195 | AA29: 371 | AB29: 24601 | AC29: 27600 | AD29: 191 | AE29: 323.875 | AF29: 17401 | AG29: 18400 | AH29: 200 | AI29: 413 | AJ29: 29941 | AK29: 31740 | AL29: 183 | AM29: 327-476-476 | AN29: 25601 | AO29: 27600 | AP29: 168 | AQ29: 294 | AR29: 37101 | AS29: 39100
A30: 27 | B30: 166 | C30: 312 | D30: 17547.33333 | E30: 18446.33333 | F30: 175.75 | G30: 272-272-340 | H30: 34397.7 | I30: 37596.7 | J30: 190 | K30: 148 | L30: 17649.4 | M30: 18536.4 | N30: 199 | O30: 223 | P30: 20151 | Q30: 21150 | R30: 192 | S30: 298 | T30: 17801 | U30: 18800 | W30: 415 | X30: 22501 | Y30: 23500 | Z30: 199 | AA30: 375 | AB30: 25201 | AC30: 28200 | AD30: 195 | AE30: 327.55 | AF30: 17801 | AG30: 18800 | AH30: 205 | AI30: 418 | AJ30: 30631 | AK30: 32430 | AL30: 188 | AM30: 331-481-481 | AN30: 26201 | AO30: 28200 | AP30: 172 | AQ30: 297 | AR30: 37951 | AS30: 39950
A31: 28 | B31: 169 | C31: 316 | D31: 17939.66667 | E31: 18838.66667 | F31: 179.5 | G31: 275-275-344 | H31: 35197.65 | I31: 38396.65 | J31: 194 | K31: 150 | L31: 18043.816 | M31: 18930.816 | N31: 204 | O31: 225 | P31: 20601 | Q31: 21600 | R31: 196 | S31: 301 | T31: 18201 | U31: 19200 | W31: 420 | X31: 23001 | Y31: 24000 | Z31: 204 | AA31: 379 | AB31: 25801 | AC31: 28800 | AD31: 199 | AE31: 331.225 | AF31: 18201 | AG31: 19200 | AH31: 209 | AI31: 422 | AJ31: 31321 | AK31: 33120 | AL31: 192 | AM31: 334-487-487 | AN31: 26801 | AO31: 28800 | AP31: 175 | AQ31: 301 | AR31: 38801 | AS31: 40800
A32: 29 | B32: 174 | C32: 319 | D32: 18332 | E32: 19231 | F32: 183.25 | G32: 278-278-348 | H32: 35997.6 | I32: 39196.6 | J32: 198 | K32: 152 | L32: 18438.232 | M32: 19325.232 | N32: 208 | O32: 228 | P32: 21051 | Q32: 22050 | R32: 200 | S32: 305 | T32: =T31+400 -> 18601 | U32: =U31+400 -> 19600 | V32: 218 | W32: 424 | X32: 23501 | Y32: 24500 | Z32: 208 | AA32: =AA31+4 -> 383 | AB32: 26401 | AC32: 29400 | AD32: 203 | AE32: 334.9 | AF32: 18601 | AG32: 19600 | AH32: 213 | AI32: 427 | AJ32: 32011 | AK32: 33810 | AL32: 196 | AM32: 338-492-492 | AN32: 27401 | AO32: 29400 | AP32: 179 | AQ32: 304 | AR32: 39651 | AS32: 41650
A33: 30 | B33: 178 | C33: 323 | D33: 18724.33333 | E33: 19623.33333 | F33: 187 | G33: 281-281-352 | H33: 36797.55 | I33: 39996.55 | J33: 202 | K33: 153 | L33: 18832.648 | M33: 19719.648 | N33: 212 | O33: 230 | P33: 21501 | Q33: 22500 | R33: 205 | S33: 308 | T33: 19001 | U33: 20000 | W33: 429 | X33: 24001 | Y33: 25000 | Z33: 212 | AA33: 388 | AB33: 27001 | AC33: 30000 | AD33: 207 | AE33: 338.575 | AF33: 19001 | AG33: 20000 | AH33: 218 | AI33: 432 | AJ33: 32701 | AK33: 34500 | AL33: 200 | AM33: 342-497-497 | AN33: 28001 | AO33: 30000 | AP33: 183 | AQ33: 307 | AR33: =AR32+850 -> 40501 | AS33: =AS32+850 -> 42500
A34: 31 | B34: 181 | C34: 326 | D34: 19116.66667 | E34: 20015.66667 | F34: 190.75 | G34: 285-285-356 | H34: 37597.5 | I34: 40796.5 | J34: 206 | K34: 155 | L34: 19227.064 | M34: 20114.064 | N34: 217 | O34: 233 | P34: 21951 | Q34: 22950 | R34: 209 | S34: 311 | T34: 19401 | U34: 20400 | W34: 434 | X34: 24501 | Y34: 25500 | Z34: 217 | AA34: =AA33+4 -> 392 | AB34: 27601 | AC34: 30600 | AD34: 212 | AE34: 342.25 | AF34: 19401 | AG34: 20400 | AH34: 222 | AI34: 436 | AJ34: 33391 | AK34: 35190 | AL34: 203 | AM34: 345-503-503 | AN34: 28601 | AO34: 30600 | AP34: 186 | AQ34: 311 | AR34: 41351 | AS34: 43350
A35: 32 | B35: 185 | C35: 330 | D35: 19509 | E35: 20408 | F35: 194.5 | G35: 288-288-360 | H35: 38397.45 | I35: 41596.45 | J35: 210 | K35: 157 | L35: 19621.48 | M35: 20508.48 | N35: 221 | O35: 235 | P35: 22401 | Q35: 23400 | R35: 213 | S35: 315 | T35: 19801 | U35: 20800 | W35: 438 | X35: 25001 | Y35: 26000 | Z35: 221 | AA35: =AA34+4 -> 396 | AB35: 28201 | AC35: 31200 | AD35: 216 | AE35: 345.925 | AF35: 19801 | AG35: 20800 | AH35: 226 | AI35: 441 | AJ35: 34081 | AK35: 35880 | AL35: 208 | AM35: 349-508-508 | AN35: 29201 | AO35: 31200 | AP35: 190 | AQ35: 314 | AR35: 42201 | AS35: 44200
A36: 33 | B36: 188 | C36: 333 | D36: 19901.33333 | E36: 20800.33333 | F36: 198.25 | G36: 291-291-364 | H36: 39197.4 | I36: 42396.4 | J36: 214 | K36: 158 | L36: 20015.896 | M36: 20902.896 | N36: 225 | O36: 238 | P36: 22851 | Q36: 23850 | R36: 217 | S36: 318 | T36: 20201 | U36: 21200 | W36: 443 | X36: 25501 | Y36: 26500 | Z36: 225 | AA36: 400 | AB36: 28801 | AC36: 31800 | AD36: 220 | AE36: 349.6 | AF36: 20201 | AG36: 21200 | AH36: 231 | AI36: 446 | AJ36: 34771 | AK36: 36570 | AL36: 212 | AM36: 353-513-513 | AN36: 29801 | AO36: 31800 | AP36: 194 | AQ36: 317 | AR36: 43051 | AS36: 45050
A37: 34 | B37: 192 | C37: 337 | D37: 20293.66667 | E37: 21192.66667 | F37: 202 | G37: 294-294-367 | H37: 39997.35 | I37: 43196.35 | J37: 218 | K37: 160 | L37: 20410.312 | M37: 21297.312 | N37: 229 | O37: 240 | P37: 23301 | Q37: 24300 | R37: 221 | S37: 321 | T37: 20601 | U37: 21600 | W37: 448 | X37: 26001 | Y37: 27000 | Z37: 229 | AA37: 404 | AB37: 29401 | AC37: 32400 | AD37: 224 | AE37: 353.275 | AF37: 20601 | AG37: 21600 | AH37: 235 | AI37: 450 | AJ37: 35461 | AK37: 37260 | AL37: 216 | AM37: 356-519-519 | AN37: 30401 | AO37: 32400 | AP37: 197 | AQ37: 321 | AR37: 43901 | AS37: 45900
A38: 35 | B38: 195 | C38: 340 | D38: 20686 | E38: 21585 | F38: 205.75 | G38: 297-297-371 | H38: 40797.3 | I38: 43996.3 | J38: 222 | K38: 162 | L38: 20804.728 | M38: 21691.728 | N38: 233 | O38: 243 | P38: 23751 | Q38: 24750 | R38: 225 | S38: 325 | T38: 21001 | U38: 22000 | W38: 452 | X38: 26501 | Y38: 27500 | Z38: 233 | AA38: 408 | AB38: 30001 | AC38: 33000 | AD38: 228 | AE38: 356.95 | AF38: 21001 | AG38: 22000 | AH38: 239 | AI38: 455 | AJ38: 36151 | AK38: 37950 | AL38: 220 | AM38: 360-524-524 | AN38: 31001 | AO38: 33000 | AP38: 201 | AQ38: 324 | AR38: 44751 | AS38: 46750
A39: 36 | B39: 199 | C39: 344 | D39: 21078.33333 | E39: 21977.33333 | F39: 209.5 | G39: 300-300-375 | H39: 41597.25 | I39: 44796.25 | J39: 226 | K39: 163 | L39: 21199.144 | M39: 22086.144 | N39: 238 | O39: 245 | P39: 24201 | Q39: 25200 | R39: 229 | S39: 328 | T39: 21401 | U39: 22400 | W39: 457 | X39: 27001 | Y39: 28000 | Z39: 238 | AA39: 412 | AB39: 30601 | AC39: 33600 | AD39: 233 | AE39: 360.625 | AF39: 21401 | AG39: 22400 | AH39: 244 | AI39: 460 | AJ39: 36841 | AK39: 38640 | AL39: 223 | AM39: 364-529-529 | AN39: 31601 | AO39: 33600 | AP39: 205 | AQ39: 327 | AR39: 45601 | AS39: 47600
A40: 37 | B40: 202 | C40: 347 | D40: 21470.66667 | E40: 22369.66667 | F40: 213.25 | G40: 303-303-378 | H40: 42397.2 | I40: 45596.2 | J40: 230 | K40: 165 | L40: 21593.56 | M40: 22480.56 | N40: 242 | O40: 248 | P40: 24651 | Q40: 25650 | R40: 233 | S40: 331 | T40: 21801 | U40: 22800 | W40: 462 | X40: 27501 | Y40: 28500 | Z40: 242 | AA40: 416 | AB40: 31201 | AC40: 34200 | AD40: 237 | AE40: 364.3 | AF40: 21801 | AG40: 22800 | AH40: 248 | AI40: 464 | AJ40: 37531 | AK40: 39330 | AL40: 228 | AM40: 369-535-535 | AN40: 32201 | AO40: 34200 | AP40: 208 | AQ40: 331 | AR40: 46451 | AS40: 48450
A41: 38 | B41: 206 | C41: 351 | D41: 21863 | E41: 22762 | F41: 217 | G41: 306-306-382 | H41: 43197.15 | I41: 46396.15 | J41: 234 | K41: 167 | L41: 21987.976 | M41: 22874.976 | N41: 246 | O41: 250 | P41: 25101 | Q41: 26100 | R41: 237 | S41: 335 | T41: 22201 | U41: 23200 | W41: 466 | X41: 28001 | Y41: 29000 | Z41: 246 | AA41: 420 | AB41: 31801 | AC41: 34800 | AD41: 241 | AE41: 367.975 | AF41: 22201 | AG41: 23200 | AH41: 252 | AI41: 469 | AJ41: 38221 | AK41: 40020 | AL41: 232 | AM41: 371-540-540 | AN41: 32801 | AO41: 34800 | AP41: 212 | AQ41: 334 | AR41: 47301 | AS41: 49300
A42: 39 | B42: 209 | C42: 354 | D42: 22255.33333 | E42: 23154.33333 | F42: 220.75 | G42: 309-309-386 | H42: 43997.1 | I42: 47196.1 | J42: 238 | K42: 168 | L42: =L41+394.416 -> 22382.392 | M42: =M41+394.416 -> 23269.392 | N42: 251 | O42: 253 | P42: 25551 | Q42: 26550 | R42: 241 | S42: 338 | T42: 22601 | U42: 23600 | W42: 471 | X42: 28501 | Y42: 29500 | Z42: 251 | AA42: 424 | AB42: 32401 | AC42: 35400 | AD42: 245 | AE42: 371.65 | AF42: 22601 | AG42: 23600 | AH42: 257 | AI42: 474 | AJ42: 38911 | AK42: 40710 | AL42: 236 | AM42: 375-545-545 | AN42: 33401 | AO42: 35400 | AP42: 216 | AQ42: 337 | AR42: 48151 | AS42: 50150
A43: 40 | B43: 213 | C43: 358 | D43: 22647.66667 | E43: 23546.66667 | F43: 224.5 | G43: 311-311-390 | H43: 44797.05 | I43: 47996.05 | J43: 242 | K43: 170 | L43: 22776.808 | M43: 23663.808 | N43: 255 | O43: 255 | P43: 26001 | Q43: 27000 | R43: 246 | S43: 341 | T43: 23001 | U43: 24000 | V43: 267 | W43: 476 | X43: 29001 | Y43: 30000 | Z43: 255 | AA43: 429 | AB43: 33001 | AC43: 36000 | AD43: 249 | AE43: 375.325 | AF43: 23001 | AG43: 24000 | AH43: 261 | AI43: 478 | AJ43: 39601 | AK43: 41400 | AL43: 240 | AM43: 378-551-551 | AN43: 34001 | AO43: 36000 | AP43: 219 | AQ43: 341 | AR43: 49001 | AS43: 51000
A44: 41 | B44: 216 | C44: 361 | D44: 23040 | E44: 23939 | F44: 228.25 | G44: 314-314-394 | H44: 45597 | I44: 48796 | J44: =J45-4 -> 247 | K44: 172 | L44: 23171.224 | M44: 24058.224 | N44: 259 | O44: 258 | P44: 26451 | Q44: 27450 | R44: 250 | S44: 345 | T44: 23401 | U44: 24400 | W44: 480 | X44: 29501 | Y44: 30500 | Z44: 259 | AA44: =AA43+4 -> 433 | AB44: 33601 | AC44: 36600 | AD44: 253 | AE44: 379 | AF44: 23401 | AG44: 24400 | AH44: 266 | AI44: 483 | AJ44: 40291 | AK44: 42090 | AL44: 243 | AM44: 382-556-556 | AN44: 34601 | AO44: 36600 | AP44: 223 | AQ44: 344 | AR44: 49851 | AS44: 51850
A45: 42 | B45: 220 | C45: 365 | D45: 23432.33333 | E45: 24331.33333 | F45: 232 | G45: 317-317-398 | H45: 46396.95 | I45: 49595.95 | J45: 251 | K45: 173 | L45: 23565.64 | M45: 24452.64 | N45: 263 | O45: 260 | P45: 26901 | Q45: 27900 | R45: 254 | S45: 348 | T45: 23801 | U45: 24800 | W45: 485 | X45: 30001 | Y45: 31000 | Z45: 263 | AA45: =AA44+4 -> 437 | AB45: 34201 | AC45: 37200 | AD45: 258 | AE45: 382.675 | AF45: 23801 | AG45: 24800 | AH45: 270 | AI45: 488 | AJ45: 40981 | AK45: 42780 | AL45: 248 | AM45: 386-561-561 | AN45: 35201 | AO45: 37200 | AP45: 227 | AQ45: 347 | AR45: 50701 | AS45: 52700
A46: 43 | B46: 223 | C46: 368 | D46: 23824.66667 | E46: 24723.66667 | F46: =F45+3.75 -> 235.75 | G46: 320-320-401 | H46: =H45+799.95 -> 47196.9 | I46: =I45+799.95 -> 50395.9 | J46: 255 | K46: 175 | L46: 23960.056 | M46: 24847.056 | N46: 267 | O46: 263 | P46: 27351 | Q46: 28350 | R46: 258 | S46: 351 | T46: 24201 | U46: 25200 | W46: 490 | X46: 30501 | Y46: 31500 | Z46: 267 | AA46: 441 | AB46: 34801 | AC46: 37800 | AD46: 262 | AE46: 386.35 | AF46: 24201 | AG46: 25200 | AH46: 274 | AI46: 492 | AJ46: 41671 | AK46: 43470 | AL46: 252 | AM46: 389-567-567 | AN46: 35801 | AO46: 37800 | AP46: 229 | AQ46: 351 | AR46: 51551 | AS46: 53550
A47: 44 | B47: 227 | C47: 372 | D47: 24217 | E47: 25116 | F47: 239.5 | G47: 323-323-405 | H47: 47996.85 | I47: 51195.85 | J47: 259 | K47: 177 | L47: 24354.472 | M47: 25241.472 | N47: 272 | O47: 265 | P47: 27801 | Q47: 28800 | R47: 262 | S47: 355 | T47: 24601 | U47: 25600 | W47: 494 | X47: 31001 | Y47: 32000 | Z47: 272 | AA47: 445 | AB47: 35401 | AC47: 38400 | AD47: 266 | AE47: 390.025 | AF47: 24601 | AG47: 25600 | AH47: 279 | AI47: 497 | AJ47: 42361 | AK47: 44160 | AL47: 256 | AM47: 393-572-572 | AN47: 36401 | AO47: 38400 | AP47: 233 | AQ47: 354 | AR47: 52401 | AS47: 54400 | AT47: 688
A48: 45 | B48: 230 | C48: 375 | D48: 24609.33333 | E48: 25508.33333 | F48: 243.25 | G48: 326-326-409 | H48: 48796.8 | I48: 51995.8 | J48: 263 | K48: 178 | L48: 24748.888 | M48: 25635.888 | N48: 276 | O48: 268 | P48: 28251 | Q48: 29250 | R48: 268 | S48: 358 | T48: 25001 | U48: 26000 | W48: 499 | X48: 31501 | Y48: 32500 | Z48: 276 | AA48: 449 | AB48: 36001 | AC48: 39000 | AD48: 270 | AE48: 393.7 | AF48: 25001 | AG48: 26000 | AH48: 283 | AI48: 502 | AJ48: 43051 | AK48: 44850 | AL48: 260 | AM48: 397-577-577 | AN48: 37001 | AO48: 39000 | AP48: 237 | AQ48: 357 | AR48: 53251 | AS48: 55250
A49: 46 | B49: 234 | C49: 379 | D49: 25001.66667 | E49: 25900.66667 | F49: 247 | G49: 329-329-412 | H49: 49596.75 | I49: 52795.75 | J49: =J50-4 -> 267 | K49: 180 | L49: 25143.304 | M49: 26030.304 | N49: 280 | O49: 270 | P49: 28701 | Q49: 29700 | R49: 270 | S49: 361 | T49: 25401 | U49: 26400 | W49: 504 | X49: 32001 | Y49: 33000 | Z49: 280 | AA49: 453 | AB49: 36601 | AC49: 39600 | AD49: 274 | AE49: 397.375 | AF49: 25401 | AG49: 26400 | AH49: 287 | AI49: 506 | AJ49: 43741 | AK49: 45540 | AL49: 263 | AM49: 400-583-583 | AN49: 37601 | AO49: 39600 | AP49: 240 | AQ49: 361 | AR49: 54101 | AS49: 56100
A50: 47 | B50: 237 | C50: 382 | D50: 25394 | E50: 26293 | F50: 250.75 | G50: 332-332-416 | H50: 50396.7 | I50: 53595.7 | J50: 271 | K50: 182 | L50: 25537.72 | M50: 26424.72 | N50: 285 | O50: 273 | P50: 29151 | Q50: 30150 | R50: 274 | S50: 365 | T50: 25801 | U50: 26800 | W50: 508 | X50: 32501 | Y50: 33500 | Z50: 285 | AA50: 457 | AB50: 37201 | AC50: 40200 | AD50: 278 | AE50: 401.05 | AF50: 25801 | AG50: 26800 | AH50: 292 | AI50: 511 | AJ50: 44431 | AK50: 46230 | AL50: 268 | AM50: 404-588-588 | AN50: 38201 | AO50: 40200 | AP50: 244 | AQ50: 364 | AR50: 54951 | AS50: 56950
A51: 48 | B51: 241 | C51: 386 | D51: 25786.33333 | E51: 26685.33333 | F51: 254.5 | G51: 335-335-420 | H51: 51196.65 | I51: 54395.65 | J51: 275 | K51: 183 | L51: 25932.136 | M51: 26819.136 | N51: 289 | O51: 275 | P51: 29601 | Q51: 30600 | R51: 278 | S51: 368 | T51: 26201 | U51: 27200 | W51: 513 | X51: 33001 | Y51: 34000 | Z51: 289 | AA51: 461 | AB51: 37801 | AC51: 40800 | AD51: 282 | AE51: 404.725 | AF51: 26201 | AG51: 27200 | AH51: 296 | AI51: 516 | AJ51: 45121 | AK51: 46920 | AL51: 272 | AM51: 408-593-593 | AN51: 38801 | AO51: 40800 | AP51: 248 | AQ51: 367 | AR51: 55801 | AS51: 57800
A52: 49 | B52: 244 | C52: 389 | D52: 26178.66667 | E52: 27077.66667 | F52: 258.25 | G52: 338-338-423 | H52: 51996.6 | I52: 55195.6 | J52: 279 | K52: 185 | L52: 26326.552 | M52: 27213.552 | N52: 293 | O52: 278 | P52: 30051 | Q52: 31050 | R52: 282 | S52: 371 | T52: 26601 | U52: 27600 | W52: 518 | X52: 33501 | Y52: 34500 | Z52: 293 | AA52: 465 | AB52: 38401 | AC52: 41400 | AD52: 286 | AE52: 408.4 | AF52: 26601 | AG52: 27600 | AH52: 300 | AI52: 520 | AJ52: 45811 | AK52: 47610 | AL52: 276 | AM52: 411-599-599 | AN52: 39401 | AO52: 41400 | AP52: 251 | AQ52: 371 | AR52: 56651 | AS52: 58650
A53: 50 | B53: 248 | C53: 393 | D53: 26571 | E53: 27470 | F53: 262 | G53: 341-341-427 | H53: 52796.55 | I53: 55995.55 | J53: =J52+4 -> 283 | K53: 187 | L53: 26720.968 | M53: 27607.968 | N53: 297 | O53: 280 | P53: 30501 | Q53: 31500 | R53: 287 | S53: 375 | T53: 27001 | U53: 28000 | W53: 522 | X53: 34001 | Y53: 35000 | Z53: 297 | AA53: 469 | AB53: 39001 | AC53: 42000 | AD53: 290 | AE53: 412.075 | AF53: 27001 | AG53: 28000 | AH53: 305 | AI53: 525 | AJ53: 46501 | AK53: 48300 | AL53: 280 | AM53: 415-604-604 | AN53: 40001 | AO53: 42000 | AP53: 255 | AQ53: 374 | AR53: 57501 | AS53: 59500
A54: 51 | B54: 252 | C54: 396 | D54: 26963.33333 | E54: 27862.33333 | F54: 265.75 | G54: 344-344-431 | H54: 53596.5 | I54: 56795.5 | J54: =J53+4 -> 287 | K54: 188 | L54: 27115.384 | M54: 28002.384 | N54: 301 | O54: 283 | P54: 30951 | Q54: 31950 | R54: 291 | S54: 378 | T54: 27401 | U54: 28400 | W54: 527 | X54: 34501 | Y54: 35500 | Z54: 301 | AA54: 473 | AB54: 39601 | AC54: 42600 | AD54: 294 | AE54: 415.75 | AF54: 27401 | AG54: 28400 | AH54: 309 | AI54: 530 | AJ54: 47191 | AK54: 48990 | AL54: 283 | AM54: 419-609-609 | AN54: 40601 | AO54: 42600 | AP54: 259 | AQ54: 377 | AR54: 58351 | AS54: 60350
A55: 52 | B55: 255 | C55: 400 | D55: 27355.66667 | E55: 28254.66667 | F55: 269.5 | G55: 347-347-435 | H55: 54396.45 | I55: 57595.45 | J55: 291 | K55: 190 | L55: 27509.8 | M55: 28396.8 | N55: 305 | O55: 285 | P55: 31401 | Q55: 32400 | R55: 295 | S55: 381 | T55: 27801 | U55: 28800 | W55: 532 | X55: 35001 | Y55: 36000 | Z55: 305 | AA55: 477 | AB55: 40201 | AC55: 43200 | AD55: 298 | AE55: 419.425 | AF55: 27801 | AG55: 28800 | AH55: 313 | AI55: 534 | AJ55: 47881 | AK55: 49680 | AL55: 288 | AM55: 422-615-615 | AN55: 41201 | AO55: 43200 | AP55: 262 | AQ55: 381 | AR55: 59201 | AS55: 61200
A56: 53 | B56: 259 | C56: 403 | D56: 27748 | E56: 28647 | F56: 273.25 | G56: 350-350-438 | H56: 55196.4 | I56: 58395.4 | J56: 295 | K56: 192 | L56: 27904.216 | M56: 28791.216 | N56: 310 | O56: 288 | P56: 31851 | Q56: 32850 | R56: 299 | S56: 385 | T56: 28201 | U56: 29200 | V56: 324 | W56: 536 | X56: 35501 | Y56: 36500 | Z56: 310 | AA56: 481 | AB56: 40801 | AC56: 43800 | AD56: 302 | AE56: 423.1 | AF56: 28201 | AG56: 29200 | AH56: 317 | AI56: 539 | AJ56: 48571 | AK56: 50370 | AL56: 292 | AM56: 426-620-620 | AN56: 41801 | AO56: 43800 | AP56: 266 | AQ56: 384 | AR56: 60051 | AS56: 62050
A57: 54 | B57: 262 | C57: 407 | D57: 28140.33333 | E57: 29039.33333 | F57: 277 | G57: 353-353-442 | H57: 55996.35 | I57: 59195.35 | J57: 299 | K57: 193 | L57: 28298.632 | M57: 29185.632 | N57: 314 | O57: 290 | P57: 32301 | Q57: 33300 | R57: 303 | S57: 388 | T57: 28601 | U57: 29600 | W57: 541 | X57: 36001 | Y57: 37000 | Z57: 314 | AA57: 485 | AB57: 41401 | AC57: 44400 | AD57: 307 | AE57: 426.775 | AF57: 28601 | AG57: 29600 | AH57: 322 | AI57: 544 | AJ57: 49261 | AK57: 51060 | AL57: 296 | AM57: 430-625-625 | AN57: 42401 | AO57: 44400 | AP57: 270 | AQ57: 387 | AR57: 60901 | AS57: 62900
A58: 55 | B58: 265 | C58: 410 | D58: 28532.66667 | E58: 29431.66667 | F58: 280.75 | G58: 356-356-446 | H58: 56796.3 | I58: 59995.3 | J58: 303 | K58: 195 | L58: 28693.048 | M58: 29580.048 | N58: 319 | O58: 293 | P58: 32751 | Q58: 33750 | R58: 307 | S58: 391 | T58: 29001 | U58: 30000 | W58: 546 | X58: 36501 | Y58: 37500 | Z58: 319 | AA58: =AA57+4 -> 489 | AB58: 42001 | AC58: 45000 | AD58: 311 | AE58: 430.45 | AF58: 29001 | AG58: 30000 | AH58: 326 | AI58: 548 | AJ58: 49951 | AK58: 51750 | AL58: 300 | AM58: 433-631-631 | AN58: 43001 | AO58: 45000 | AP58: 273 | AQ58: 391 | AR58: 61751 | AS58: 63750
A59: 56 | B59: 269 | C59: 414 | D59: 28925 | E59: 29824 | F59: 284.5 | G59: 359-359-450 | H59: 57596.25 | I59: 60795.25 | J59: 307 | K59: 197 | L59: 29087.464 | M59: 29974.464 | N59: 323 | O59: 295 | P59: 33201 | Q59: 34200 | R59: 311 | S59: 395 | T59: 29401 | U59: 30400 | W59: 550 | X59: 37001 | Y59: 38000 | Z59: 323 | AA59: =AA58+4 -> 493 | AB59: 42601 | AC59: 45600 | AD59: 315 | AE59: 434.125 | AF59: 29401 | AG59: 30400 | AH59: 330 | AI59: 553 | AJ59: 50641 | AK59: 52440 | AL59: 303 | AM59: 437-636-636 | AN59: 43601 | AO59: 45600 | AP59: 277 | AQ59: 394 | AR59: 62601 | AS59: 64600
A60: 57 | B60: 272 | C60: 417 | D60: 29317.33333 | E60: 30216.33333 | F60: 288.25 | G60: 362-362-453 | H60: 58396.2 | I60: 61595.2 | J60: 311 | K60: 198 | L60: 29481.88 | M60: 30368.88 | N60: 327 | O60: 298 | P60: 33651 | Q60: 34650 | R60: 315 | S60: 398 | T60: 29801 | U60: 30800 | W60: 555 | X60: 37501 | Y60: 38500 | Z60: 327 | AA60: 497 | AB60: 43201 | AC60: 46200 | AD60: 319 | AE60: 437.8 | AF60: 29801 | AG60: 30800 | AH60: 335 | AI60: 558 | AJ60: 51331 | AK60: 53130 | AL60: 308 | AM60: 441-641-641 | AN60: 44201 | AO60: 46200 | AP60: 281 | AQ60: 397 | AR60: 63451 | AS60: 65450
A61: 58 | B61: 276 | C61: 421 | D61: 29709.66667 | E61: 30608.66667 | F61: 292 | G61: 365-365-457 | H61: 59196.15 | I61: 62395.15 | J61: 315 | K61: 200 | L61: 29876.296 | M61: 30763.296 | N61: 331 | O61: 300 | P61: 34101 | Q61: 35100 | R61: 319 | S61: 401 | T61: 30201 | U61: 31200 | W61: 560 | X61: 38001 | Y61: 39000 | Z61: 331 | AA61: 501 | AB61: 43801 | AC61: 46800 | AD61: 323 | AE61: 441.475 | AF61: 30201 | AG61: 31200 | AH61: 339 | AI61: 562 | AJ61: 52021 | AK61: 53820 | AL61: 312 | AM61: 444-647-647 | AN61: 44801 | AO61: 46800 | AP61: 284 | AQ61: 401 | AR61: 64301 | AS61: 66300
A62: 59 | B62: 279 | C62: 424 | D62: 30102 | E62: 31001 | F62: 295.75 | G62: 368-368-461 | H62: 59996.1 | I62: 63195.1 | J62: 319 | K62: 202 | L62: 30270.712 | M62: 31157.712 | N62: 335 | O62: 303 | P62: 34551 | Q62: 35550 | R62: 323 | S62: 405 | T62: 30601 | U62: 31600 | W62: 564 | X62: 38501 | Y62: 39500 | Z62: 335 | AA62: 505 | AB62: 44401 | AC62: 47400 | AD62: 328 | AE62: 445.15 | AF62: 30601 | AG62: 31600 | AH62: 343 | AI62: 567 | AJ62: 52711 | AK62: 54510 | AL62: 316 | AM62: 448-652-652 | AN62: 45401 | AO62: 47400 | AP62: 288 | AQ62: 404 | AR62: 65151 | AS62: 67150
A63: 60 | B63: 283 | C63: 428 | D63: 30494.33333 | E63: 31393.33333 | F63: 299.5 | G63: 371-371-465 | H63: 60796.05 | I63: 63995.05 | J63: 324 | K63: 203 | L63: 30665.128 | M63: 31552.128 | N63: 340 | O63: 305 | P63: 35001 | Q63: 36000 | R63: 328 | S63: 408 | T63: 31001 | U63: 32000 | W63: 569 | X63: 39001 | Y63: 40000 | Z63: 340 | AA63: 509 | AB63: 45001 | AC63: 48000 | AD63: 332 | AE63: 448.825 | AF63: 31001 | AG63: 32000 | AH63: 348 | AI63: 572 | AJ63: 53401 | AK63: 55200 | AL63: 320 | AM63: 452-657-657 | AN63: 46001 | AO63: 48000 | AP63: 292 | AQ63: 407 | AR63: 66001 | AS63: 68000
